bitfinex/quotes_SOLUSD_20241102
["timestamp","ask_amount","ask_price","bid_price","bid_amount"]
[1730555454266,11.279015,165.23,165.19,23.776884]
[1730555454484,11.279015,165.22,165.19,20.0]
[1730555454657,11.279015,165.22,165.18,23.776884]
[1730555455384,11.279015,165.23,165.18,23.776884]
[1730555456080,6.0525,165.22,165.18,23.776884]
[1730555456582,17.331215,165.23,165.18,29.830584]
[1730555456996,11.279015,165.19,165.16,6.30142802]
[1730555457289,11.279015,165.18,165.13,15.4874]
[1730555457600,11.279015,165.17,165.12,17.58300945]
[1730555457895,11.279015,165.16,165.12,6.30399445]
[1730555458393,11.279015,165.16,165.13,23.776884]
[1730555458579,11.279015,165.16,165.12,6.30399445]
[1730555458783,45.11606,165.2,165.12,6.30399445]
[1730555458784,11.279015,165.13,165.12,6.30399445]
[1730555459093,11.279015,165.13,165.08,26.422915]
[1730555459285,11.279015,165.13,165.09,0.12549]
[1730555459595,11.279015,165.13,165.08,26.422915]
[1730555459596,11.279015,165.13,165.08,15.1439]
[1730555459803,11.279015,165.13,165.08,21.2015]
[1730555460684,11.279015,165.13,165.08,32.480515]
[1730555461504,17.334715,165.14,165.09,23.776884]
[1730555461803,11.279015,165.16,165.11,11.279015]
[1730555462096,11.279015,165.14,165.09,35.055899]
[1730555462692,11.279015,165.14,165.09,41.113099]
[1730555462898,11.279015,165.12,165.09,23.776884]
[1730555463191,6.0555,165.14,165.08,20.0]
[1730555463192,11.279015,165.11,165.08,20.0]
[1730555463395,11.279015,165.1,165.08,20.0]
[1730555463576,11.279015,165.1,165.05,21.5458]
[1730555463781,11.279015,165.1,165.05,27.8563035]
[1730555464089,11.279015,165.09,165.05,6.3105035]
[1730555464476,17.62844082,165.09,165.05,6.3105035]
[1730555464696,23.68494082,165.11,165.05,29.99764432]
[1730555465298,23.68494082,165.11,165.05,45.14454432]
[1730555465600,23.68494082,165.11,165.06,41.40532482]
[1730555467300,17.62844082,165.1,165.06,23.776884]
[1730555467798,17.62844082,165.09,165.06,23.776884]
[1730555468286,17.62844082,165.08,165.05,15.1469]
[1730555468602,17.62844082,165.06,165.01,48.26564082]
[1730555468900,17.62844082,165.06,165.03,20.0]
[1730555469198,17.62844082,165.07,165.03,20.0]
[1730555469696,17.62844082,165.08,165.03,17.75393082]
[1730555469904,17.62844082,165.09,165.04,17.62844082]
[1730555470096,17.62844082,165.1,165.04,17.62844082]
[1730555470301,29.83434082,165.11,165.05,17.62844082]
[1730555470481,17.62844082,165.09,165.04,17.62844082]
[1730555470686,17.62844082,165.08,165.03,29.961574]
[1730555472509,17.62844082,165.07,165.02,52.77804082]
[1730555472692,17.62844082,165.06,165.02,41.2093]
[1730555473407,17.62844082,165.07,165.02,41.2093]
[1730555473629,17.62844082,165.07,165.02,58.83774082]
[1730555473805,17.62844082,165.08,165.03,41.40532482]
[1730555473980,17.62844082,165.09,165.04,0.12549]
[1730555474603,17.62844082,165.08,165.04,0.12549]
[1730555474928,17.62844082,165.08,165.05,23.776884]
[1730555475510,23.68464082,165.12,165.07,17.62844082]
[1730555475719,17.62844082,165.13,165.08,23.776884]
[1730555476017,17.62844082,165.15,165.1,17.62844082]
[1730555476305,17.62844082,165.15,165.1,23.776884]
[1730555476513,17.62844082,165.14,165.1,23.776884]
[1730555476681,17.62844082,165.15,165.11,6.0565]
[1730555476885,15.728,165.17,165.11,6.0565]
[1730555476886,17.62844082,165.18,165.13,37.62844082]
[1730555477130,17.62844082,165.19,165.14,17.62844082]
[1730555477401,17.62844082,165.18,165.14,23.776884]
[1730555477781,17.62844082,165.17,165.13,0.12549]
[1730555478202,17.62844082,165.17,165.13,29.957974]
[1730555478704,17.62844082,165.2,165.15,41.40532482]
[1730555478908,17.62844082,165.2,165.15,17.62844082]
[1730555479108,23.68134082,165.21,165.15,17.62844082]
[1730555480197,23.68134082,165.21,165.15,23.68324082]
[1730555480402,23.68134082,165.21,165.16,17.62844082]
[1730555480602,17.62844082,165.21,165.17,23.776884]
[1730555480814,23.68094082,165.22,165.17,41.40532482]
[1730555482495,23.68094082,165.22,165.17,47.45962482]
[1730555482839,17.62844082,165.2,165.16,23.902374]
[1730555483921,17.62844082,165.2,165.16,29.957074]
[1730555484209,17.62844082,165.22,165.17,17.62844082]
[1730555484714,17.62844082,165.2,165.16,45.093874]
[1730555486618,17.62844082,165.22,165.17,17.62844082]
[1730555486907,17.62844082,165.22,165.18,23.776884]
[1730555487126,17.62844082,165.22,165.16,62.72231482]
[1730555487491,23.68104082,165.22,165.17,17.62844082]
[1730555487688,23.68104082,165.22,165.18,23.776884]
[1730555488626,23.68104082,165.22,165.17,29.831184]
[1730555489598,17.62844082,165.22,165.17,62.59552482]
[1730555490830,6.0518,165.24,165.19,11.26449484]
[1730555491020,11.26449484,165.26,165.21,35.04137884]
[1730555491320,11.26449484,165.26,165.21,23.776884]
[1730555491529,6.4136,165.27,165.21,23.776884]
[1730555491530,11.26449484,165.25,165.21,23.776884]
[1730555493027,17.31589484,165.25,165.21,23.776884]
[1730555493235,6.0514,165.25,165.21,23.776884]
[1730555493903,17.31589484,165.25,165.21,23.776884]
[1730555494202,6.4136,165.27,165.17,15.1359]
[1730555494203,11.26449484,165.22,165.18,20.0]
[1730555494414,11.26449484,165.22,165.19,23.776884]
[1730555496720,11.26449484,165.2,165.13,30.9919]
[1730555496930,11.26449484,165.17,165.13,30.9919]
[1730555497805,11.26449484,165.17,165.13,37.0477]
[1730555498013,11.26449484,165.19,165.15,0.25098]
[1730555498330,11.26449484,165.2,165.16,23.776884]
[1730555498531,11.26449484,165.22,165.17,0.25098]
[1730555498823,11.26449484,165.21,165.17,0.25098]
[1730555499210,11.26449484,165.18,165.16,23.776884]
[1730555500102,11.26449484,165.2,165.16,23.776884]
[1730555500923,11.26449484,165.19,165.16,23.776884]
[1730555502236,11.26449484,165.18,165.16,23.776884]
[1730555502414,11.26449484,165.17,165.14,20.0]
[1730555502599,11.26449484,165.16,165.14,20.0]
[1730555503112,11.26449484,165.17,165.14,23.776884]
[1730555503931,11.26449484,165.15,165.11,26.0564]
[1730555504226,11.26449484,165.15,165.11,6.0564]
[1730555505011,11.26449484,165.15,165.12,23.776884]
[1730555506016,11.26449484,165.13,165.11,20.0]
[1730555506230,11.26449484,165.13,165.1,6.30525033]
[1730555507222,11.26449484,165.12,165.1,6.30525033]
[1730555507437,11.26449484,165.11,165.1,6.30525033]
[1730555507615,11.26449484,165.11,165.05,42.26829484]
[1730555507616,11.26449484,165.11,165.05,37.0622]
[1730555507820,11.26449484,165.08,165.05,27.50917678]
[1730555508016,11.26449484,165.08,165.05,21.45077678]
[1730555508323,11.26449484,165.07,165.05,6.30477678]
[1730555508519,11.26449484,165.06,165.03,6.0591]
[1730555508911,11.26449484,165.06,165.04,0.12549]
[1730555509320,11.26449484,165.06,165.04,23.902374]
[1730555510238,11.26449484,165.06,165.04,23.776884]
[1730555510409,17.63307257,165.06,165.04,23.776884]
[1730555514929,17.63307257,165.07,165.04,23.776884]
[1730555515342,17.63307257,165.06,165.04,23.776884]
[1730555515714,17.63307257,165.05,165.03,20.0]
[1730555516132,16.0361,165.1,164.99,20.90886699]
[1730555516133,17.63307257,165.04,164.99,20.90886699]
[1730555516434,17.63307257,165.03,164.99,33.27133737]
[1730555517323,17.63307257,165.01,164.99,7.21043737]
[1730555517625,17.63307257,165.0,164.99,0.90886699]
[1730555519139,17.63307257,165.02,164.99,0.90886699]
[1730555519345,17.63307257,165.04,164.99,24.60273956]
[1730555519711,17.63307257,165.03,164.99,6.96966699]
[1730555520837,17.63307257,165.04,164.99,6.96966699]
[1730555521029,17.63307257,165.03,165.0,23.776884]
[1730555521243,17.63307257,165.02,165.0,23.776884]
[1730555521423,17.63307257,165.02,164.99,22.12206699]
[1730555525241,17.63307257,165.01,164.99,22.12206699]
[1730555525424,17.63307257,165.0,164.99,0.90886699]
[1730555526439,23.69367257,165.0,164.99,0.90886699]
[1730555526641,23.69367257,165.0,164.95,6.30248095]
[1730555526828,17.63307257,164.96,164.92,6.0635]
[1730555527347,17.63307257,164.95,164.92,6.0635]
[1730555527729,17.63307257,164.94,164.92,6.0635]
[1730555528051,17.63307257,164.93,164.91,21.46347862]
[1730555528219,17.63307257,164.93,164.9,6.0639]
[1730555528220,17.63307257,164.92,164.88,0.82243089]
[1730555528418,17.63307257,164.91,164.88,0.82243089]
[1730555528638,17.63307257,164.91,164.88,6.88743089]
[1730555528942,17.63307257,164.9,164.88,0.82243089]
[1730555529127,17.63307257,164.89,164.88,0.82243089]
[1730555530270,23.69767257,164.89,164.88,0.82243089]
[1730555530430,41.33074514,164.89,164.88,0.82243089]
[1730555530644,47.52444514,164.89,164.88,0.82243089]
[1730555531231,47.52444514,164.89,164.84,0.6146762]
[1730555531232,83.68603514,164.89,164.84,0.6146762]
[1730555531558,37.75856257,164.85,164.84,0.6146762]
[1730555531963,20.0,164.84,164.79,6.29718138]
[1730555532255,17.63307257,164.8,164.73,21.2466]
[1730555532447,17.63307257,164.77,164.74,6.30222968]
[1730555532656,17.63307257,164.76,164.74,6.30222968]
[1730555532840,17.63307257,164.77,164.74,6.30222968]
[1730555534260,17.63307257,164.81,164.76,17.63307257]
[1730555534437,17.63307257,164.81,164.75,61.53544657]
[1730555534756,6.0661,164.85,164.77,61.40995657]
[1730555534757,17.63307257,164.83,164.77,61.40995657]
[1730555534953,6.0661,164.85,164.77,61.40995657]
[1730555534954,17.63307257,164.81,164.77,43.776884]
[1730555535154,17.63307257,164.8,164.77,43.776884]
[1730555535741,17.63307257,164.88,164.74,21.47762968]
[1730555535742,17.63307257,164.78,164.74,27.54742968]
[1730555536059,17.63307257,164.82,164.76,17.63307257]
[1730555536243,17.63307257,164.83,164.77,17.63307257]
[1730555536959,17.63307257,164.83,164.78,37.63307257]
[1730555537164,17.63307257,164.83,164.79,45.015984]
[1730555537360,17.63307257,164.82,164.79,45.015984]
[1730555538466,17.63307257,164.83,164.79,45.015984]
[1730555539057,17.63307257,164.83,164.77,17.63307257]
[1730555539058,17.63307257,164.81,164.77,20.0]
[1730555539262,17.63307257,164.81,164.75,37.63307257]
[1730555539263,17.63307257,164.79,164.76,6.0694]
[1730555539563,0.12549,164.86,164.74,6.30222968]
[1730555539564,17.63307257,164.77,164.74,6.30222968]
[1730555539764,17.63307257,164.76,164.74,6.30222968]
[1730555540548,23.83027257,164.8,164.69,30.96779091]
[1730555540549,6.0701,164.74,164.69,0.60909091]
[1730555540748,17.63307257,164.7,164.69,0.60909091]
[1730555542457,28.34567331,164.7,164.69,0.60909091]
[1730555542640,28.34567331,164.7,164.63,19.98276711]
[1730555542854,28.34567331,164.68,164.63,6.0742]
[1730555543141,28.34567331,164.69,164.63,34.41987331]
[1730555543448,28.34567331,164.67,164.63,6.0742]
[1730555543946,28.34567331,164.69,164.63,49.60467331]
[1730555544151,28.34567331,164.68,164.63,49.60467331]
[1730555544338,28.34567331,164.68,164.48,28.34567331]
[1730555544339,6.1972,164.63,164.56,15.192]
[1730555544542,6.1972,164.63,164.56,21.2688]
[1730555545352,6.1972,164.68,164.56,21.2688]
[1730555545550,28.34567331,164.66,164.59,28.34567331]
[1730555545747,28.34567331,164.64,164.58,28.34567331]
[1730555545957,28.34567331,164.63,164.57,48.47116331]
[1730555546767,28.34567331,164.63,164.59,20.0]
[1730555547044,28.34567331,164.65,164.59,48.34567331]
[1730555547244,28.34567331,164.6,164.59,20.0]
[1730555547563,28.34567331,164.61,164.59,20.0]
[1730555547944,28.34567331,164.62,164.59,20.0]
[1730555548140,28.34567331,164.63,164.59,20.0]
[1730555548352,28.34567331,164.64,164.59,20.0]
[1730555548553,28.34567331,164.64,164.6,21.2636]
[1730555548845,28.34567331,164.62,164.6,21.2636]
[1730555549554,6.0727,164.67,164.6,21.2636]
[1730555549555,28.34567331,164.63,164.6,21.2636]
[1730555550555,28.34567331,164.64,164.6,21.2636]
[1730555551158,28.34567331,164.66,164.6,49.60927331]
[1730555551351,28.34567331,164.63,164.6,21.2636]
[1730555551552,28.34567331,164.64,164.6,21.2636]
[1730555552850,28.34567331,164.64,164.6,20.7636]
[1730555554077,28.34567331,164.62,164.6,20.7636]
[1730555554283,28.34567331,164.61,164.56,35.1912]
[1730555554577,28.34567331,164.6,164.57,6.29274418]
[1730555554759,28.32562331,164.61,164.57,6.29274418]
[1730555554958,28.34567331,164.6,164.57,6.29274418]
[1730555555673,28.34567331,164.61,164.57,12.36894418]
[1730555555880,28.34567331,164.6,164.57,12.36894418]
[1730555556879,28.34567331,164.59,164.57,12.36894418]
[1730555557555,28.34567331,164.6,164.57,12.36894418]
[1730555558167,28.34567331,164.61,164.57,27.56004418]
[1730555558677,28.34567331,164.6,164.57,27.56004418]
[1730555558879,28.34567331,164.61,164.57,27.56004418]
[1730555559060,28.34567331,164.63,164.58,23.776884]
[1730555559576,28.34567331,164.59,164.57,21.48384418]
[1730555559762,28.34567331,164.59,164.58,6.0759]
[1730555559970,28.34567331,164.61,164.58,6.0759]
[1730555560283,28.34567331,164.62,164.58,6.0759]
[1730555561167,28.34567331,164.61,164.58,6.0759]
[1730555562084,28.34567331,164.6,164.57,27.56024418]
[1730555562584,17.73256266,164.6,164.57,27.56024418]
[1730555563466,17.73256266,164.61,164.57,27.56024418]
[1730555563864,17.73256266,164.62,164.57,27.56024418]
[1730555564074,17.73256266,164.64,164.58,41.50944666]
[1730555564559,17.73256266,164.63,164.58,41.50944666]
[1730555564962,17.73256266,164.63,164.58,17.73256266]
[1730555565368,17.73256266,164.63,164.58,20.0]
[1730555565576,17.73256266,164.62,164.58,20.0]
[1730555566281,17.73256266,164.62,164.59,21.2649]
[1730555567191,17.73256266,164.61,164.59,21.2649]
[1730555567487,17.73256266,164.6,164.57,12.36914418]
[1730555568271,17.73256266,164.6,164.57,21.48384418]
[1730555568989,17.73256266,164.61,164.57,21.48384418]
[1730555569183,17.73256266,164.62,164.57,21.48384418]
[1730555569582,17.73256266,164.61,164.57,21.48384418]
[1730555569965,17.73256266,164.61,164.57,27.56024418]
[1730555571486,17.73256266,164.58,164.57,21.48384418]
[1730555571678,17.73256266,164.58,164.57,6.29274418]
[1730555572370,17.73256266,164.59,164.57,6.29274418]
[1730555572877,17.73256266,164.6,164.57,12.36904418]
[1730555573662,17.73256266,164.62,164.57,27.56014418]
[1730555573896,17.73256266,164.63,164.57,45.29270684]
[1730555574169,17.73256266,164.64,164.58,41.50944666]
[1730555574373,17.73256266,164.62,164.59,21.2649]
[1730555575287,17.73256266,164.6,164.59,15.1892]
[1730555576264,17.73256266,164.61,164.59,15.1892]
[1730555576463,17.73256266,164.62,164.59,15.1892]
[1730555576893,17.73256266,164.6,164.57,6.29274418]
[1730555577483,17.73256266,164.61,164.57,27.55994418]
[1730555578597,17.73256266,164.62,164.57,27.55994418]
[1730555579093,17.73256266,164.61,164.57,27.55994418]
[1730555581179,17.73256266,164.62,164.57,45.29250684]
[1730555581380,17.73256266,164.62,164.57,27.55994418]
[1730555581689,17.73256266,164.61,164.57,27.55994418]
[1730555581866,17.73256266,164.62,164.57,45.29250684]
[1730555582065,17.73256266,164.6,164.57,27.55994418]
[1730555582273,17.73256266,164.59,164.57,27.55994418]
[1730555582892,17.73256266,164.58,164.57,6.29274418]
[1730555583276,17.73256266,164.58,164.52,0.91057897]
[1730555583596,16.0085,164.6,164.52,0.91057897]
[1730555583597,17.73256266,164.53,164.52,0.91057897]
[1730555584275,17.73256266,164.53,164.51,6.6931762]
[1730555584588,17.73256266,164.52,164.51,0.6146762]
[1730555586094,31.1968,164.6,164.51,0.6146762]
[1730555586095,17.73256266,164.54,164.51,21.8897762]
[1730555586280,17.73256266,164.56,164.51,39.62233886]
[1730555586994,17.73256266,164.57,164.52,23.776884]
[1730555587289,17.73256266,164.57,164.51,39.62233886]
[1730555587491,6.2068,164.61,164.51,39.62233886]
[1730555587492,17.73256266,164.58,164.53,23.776884]
[1730555587689,17.73256266,164.6,164.54,17.73256266]
[1730555587888,17.73256266,164.6,164.55,39.00256266]
[1730555588674,17.73256266,164.59,164.55,21.27]
[1730555589273,17.73256266,164.59,164.55,15.1929]
[1730555589782,17.73256266,164.59,164.54,23.81006266]
[1730555589783,17.73256266,164.57,164.52,17.73256266]
[1730555589988,17.73256266,164.56,164.52,21.2739]
[1730555590296,17.73256266,164.58,164.52,39.00646266]
[1730555590519,6.0742,164.63,164.57,17.73256266]
[1730555590520,17.73256266,164.63,164.57,17.73256266]
[1730555590804,16.0085,164.64,164.56,17.73256266]
[1730555590805,17.73256266,164.62,164.56,17.73256266]
[1730555590971,17.73256266,164.61,164.55,17.73256266]
[1730555591168,17.73256266,164.6,164.55,17.73256266]
[1730555591372,17.73256266,164.6,164.56,21.2688]
[1730555591579,17.73256266,164.61,164.56,21.2688]
[1730555591974,17.73256266,164.62,164.57,17.73256266]
[1730555592198,17.73256266,164.62,164.56,39.00136266]
[1730555593978,17.73256266,164.62,164.57,17.73256266]
[1730555595295,17.73256266,164.6,164.56,21.2684]
[1730555595498,17.73256266,164.58,164.56,21.2684]
[1730555595677,17.73256266,164.59,164.56,21.2684]
[1730555596182,17.73256266,164.6,164.56,21.2684]
[1730555596383,17.73256266,164.6,164.56,15.192]
[1730555596582,17.73256266,164.59,164.56,15.192]
[1730555597388,6.0748,164.62,164.56,15.192]
[1730555597389,17.73256266,164.6,164.56,15.192]
[1730555597574,6.0748,164.62,164.55,6.0771]
[1730555597575,17.73256266,164.61,164.55,23.80966266]
[1730555598501,23.80676266,164.63,164.57,17.73256266]
[1730555599296,6.0742,164.63,164.58,17.73256266]
[1730555599799,23.80676266,164.63,164.57,23.80866266]
[1730555600300,17.73256266,164.61,164.57,6.0761]
[1730555600593,17.73256266,164.61,164.56,17.73256266]
[1730555600799,17.73256266,164.6,164.55,21.2697]
[1730555600994,17.73256266,164.59,164.55,21.2697]
[1730555601206,6.5554,164.63,164.55,15.1929]
[1730555601389,17.73256266,164.56,164.55,15.1929]
[1730555601598,17.73256266,164.56,164.53,20.0]
[1730555601800,17.73256266,164.57,164.53,20.0]
[1730555601982,17.73256266,164.56,164.52,21.2739]
[1730555602583,17.73256266,164.53,164.51,0.6146762]
[1730555602989,17.73256266,164.54,164.51,0.6146762]
[1730555603494,17.73256266,164.55,164.51,0.6146762]
[1730555603914,17.73256266,164.59,164.54,17.73256266]
[1730555604216,34.11156266,164.64,164.58,17.73256266]
[1730555604217,16.379,164.64,164.58,17.73256266]
[1730555604378,16.379,164.64,164.53,16.2003]
[1730555604379,16.379,164.64,164.59,17.73256266]
[1730555604583,34.11156266,164.64,164.59,17.73256266]
[1730555605001,23.80576266,164.66,164.6,17.73256266]
[1730555605617,17.73256266,164.65,164.6,17.73256266]
[1730555606917,17.73256266,164.64,164.59,17.73256266]
[1730555607911,17.73256266,164.65,164.59,23.80796266]
[1730555610705,23.80606266,164.65,164.59,23.80796266]
[1730555611016,17.73256266,164.66,164.61,17.73256266]
[1730555611205,17.73256266,164.67,164.61,17.73256266]
[1730555611406,17.73256266,164.66,164.61,17.73256266]
[1730555611715,17.73256266,164.66,164.6,17.73256266]
[1730555612604,23.80576266,164.66,164.6,23.80766266]
[1730555613700,23.80576266,164.66,164.61,17.73256266]
[1730555613898,17.73256266,164.66,164.61,17.73256266]
[1730555614315,0.1,164.71,164.59,15.1892]
[1730555614316,17.73256266,164.65,164.6,17.73256266]
[1730555615290,17.73256266,164.65,164.59,15.1892]
[1730555615291,17.73256266,164.64,164.59,15.1892]
[1730555615495,23.80646266,164.64,164.59,15.1892]
[1730555615719,23.80646266,164.64,164.59,21.2649]
[1730555616910,23.80646266,164.64,164.59,17.73256266]
[1730555617622,23.80646266,164.64,164.57,30.3822]
[1730555617623,6.0739,164.64,164.6,17.73256266]
[1730555618504,23.80646266,164.64,164.59,23.80806266]
[1730555619418,17.73256266,164.62,164.56,23.80926266]
[1730555619602,17.73256266,164.59,164.55,15.1928]
[1730555619802,17.73256266,164.6,164.55,32.92536266]
[1730555620412,17.73256266,164.59,164.55,15.1928]
[1730555620609,17.73256266,164.57,164.51,39.83649094]
[1730555620810,17.73256266,164.57,164.51,39.62203886]
[1730555621026,17.73256266,164.57,164.52,17.73256266]
[1730555621232,17.73256266,164.57,164.51,21.8894762]
[1730555621233,17.73256266,164.57,164.51,33.54343886]
[1730555621821,6.308,164.58,164.52,17.73256266]
[1730555621822,24.04056266,164.58,164.52,17.73256266]
[1730555622320,17.73256266,164.57,164.51,39.62203886]
[1730555622728,17.73256266,164.55,164.51,15.8108762]
[1730555623114,17.73256266,164.55,164.51,0.6146762]
[1730555623412,17.73256266,164.52,164.51,0.6146762]
[1730555624796,23.81076266,164.52,164.51,0.6146762]
[1730555625329,39.87235266,164.52,164.51,0.6146762]
[1730555625536,46.18035266,164.52,164.51,0.6146762]
[1730555627222,46.28035266,164.52,164.51,0.6146762]
[1730555628227,66.28035266,164.52,164.51,0.6146762]
[1730555630119,66.28035266,164.52,164.34,1.66054192]
[1730555630120,0.1,164.42,164.34,1.66054192]
[1730555630323,17.73256266,164.39,164.34,6.6995762]
[1730555630507,20.1,164.45,164.34,6.6995762]
[1730555630712,0.1,164.44,164.34,21.9118762]
[1730555630909,0.2,164.44,164.34,21.9118762]
[1730555631105,0.2,164.44,164.34,39.64443886]
[1730555631313,17.73256266,164.4,164.34,39.64443886]
[1730555631637,17.73256266,164.4,164.34,37.14443886]
[1730555632139,23.81436266,164.43,164.37,17.73256266]
[1730555632309,17.73256266,164.41,164.35,33.46036266]
[1730555632508,17.73256266,164.4,164.35,33.46036266]
[1730555632709,17.73256266,164.39,164.33,17.73256266]
[1730555633121,6.0818,164.43,164.35,17.73256266]
[1730555633122,17.73256266,164.41,164.35,17.73256266]
[1730555633329,6.0818,164.43,164.37,17.73256266]
[1730555633330,17.73256266,164.43,164.37,17.73256266]
[1730555633908,17.73256266,164.42,164.37,17.73256266]
[1730555634128,17.73256266,164.42,164.37,23.81616266]
[1730555634513,23.81466266,164.42,164.36,39.02706266]
[1730555634727,17.73256266,164.4,164.35,17.73256266]
[1730555634918,17.73256266,164.4,164.34,23.81716266]
[1730555635637,17.73256266,164.41,164.35,17.73256266]
[1730555635838,17.73256266,164.41,164.36,17.73256266]
[1730555636630,23.81466266,164.42,164.36,17.73256266]
[1730555637018,23.81466266,164.42,164.36,23.81666266]
[1730555637219,6.0821,164.42,164.37,17.73256266]
[1730555637827,6.0821,164.42,164.36,17.73256266]
[1730555637828,23.81466266,164.42,164.36,17.73256266]
[1730555638542,17.73256266,164.41,164.36,17.73256266]
[1730555638753,17.73256266,164.37,164.32,15.2141]
[1730555639039,17.73256266,164.35,164.32,15.2141]
[1730555639843,17.73256266,164.33,164.31,6.28288082]
[1730555640016,17.73256266,164.35,164.31,6.28288082]
[1730555640338,17.73256266,164.36,164.31,12.36878082]
[1730555640519,17.73256266,164.35,164.31,12.36878082]
[1730555640726,17.73256266,164.35,164.31,11.86878082]
[1730555641114,17.73256266,164.35,164.31,5.78288082]
[1730555641422,17.73256266,164.34,164.31,5.78288082]
[1730555641832,17.73256266,164.34,164.31,11.86878082]
[1730555642136,17.73256266,164.34,164.31,10.86878082]
[1730555642316,17.73256266,164.33,164.3,6.0864]
[1730555642718,6.0838,164.37,164.29,21.3036]
[1730555642719,17.73256266,164.34,164.29,21.3036]
[1730555642917,17.73256266,164.38,164.32,17.73256266]
[1730555643114,17.73256266,164.36,164.32,6.0855]
[1730555643436,17.73256266,164.36,164.3,15.216]
[1730555643651,17.73256266,164.35,164.3,15.216]
[1730555643827,17.73256266,164.33,164.27,17.73256266]
[1730555644023,17.73256266,164.33,164.27,39.03876266]
[1730555644225,17.73256266,164.32,164.27,21.3062]
[1730555644423,17.73256266,164.32,164.27,39.03876266]
[1730555644631,17.73256266,164.32,164.27,21.3062]
[1730555644942,0.1,164.36,164.27,21.3062]
[1730555644943,17.73256266,164.3,164.27,15.2187]
[1730555645336,17.73256266,164.3,164.27,13.7187]
[1730555645537,6.086,164.31,164.27,13.7187]
[1730555645538,17.73256266,164.31,164.27,13.7187]
[1730555645931,17.73256266,164.33,164.28,17.73256266]
[1730555646136,23.81746266,164.34,164.28,17.73256266]
[1730555646543,17.73256266,164.33,164.28,17.73256266]
[1730555646723,17.73256266,164.33,164.27,31.45126266]
[1730555647224,17.73256266,164.33,164.27,37.53876266]
[1730555647825,17.73256266,164.37,164.32,17.73256266]
[1730555648252,12.1848,164.38,164.27,50.2438]
[1730555648253,23.81596266,164.38,164.33,17.73256266]
[1730555648420,17.73256266,164.38,164.27,50.3438]
[1730555648620,17.73256266,164.38,164.32,17.73256266]
[1730555649043,23.81576266,164.39,164.34,17.73256266]
[1730555649248,23.81576266,164.39,164.34,23.81746266]
[1730555650129,17.73256266,164.38,164.33,17.73256266]
[1730555650328,17.73256266,164.37,164.32,17.73256266]
[1730555650539,17.73256266,164.35,164.3,17.73256266]
[1730555650848,17.73256266,164.34,164.29,39.03616266]
[1730555651049,17.73256266,164.33,164.29,21.3036]
[1730555651439,0.1,164.37,164.29,39.03616266]
[1730555651440,17.73256266,164.34,164.29,39.03616266]
[1730555651841,17.73256266,164.34,164.28,17.73256266]
[1730555652228,23.81726266,164.35,164.3,17.73256266]
[1730555652648,17.73256266,164.38,164.33,17.73256266]
[1730555653144,17.73256266,164.39,164.34,17.73256266]
[1730555653348,17.73256266,164.4,164.35,17.73256266]
[1730555653536,17.73256266,164.4,164.34,17.73256266]
[1730555653939,17.73256266,164.39,164.33,17.73256266]
[1730555654136,17.73256266,164.36,164.32,20.0]
[1730555654326,17.73256266,164.36,164.32,6.0853]
[1730555654524,23.81526266,164.4,164.34,17.73256266]
[1730555655147,23.81526266,164.4,164.35,17.73256266]
[1730555655842,23.81526266,164.4,164.34,17.73256266]
[1730555656635,23.81526266,164.4,164.34,23.81726266]
[1730555657633,6.0827,164.4,164.35,17.73256266]
[1730555657847,23.81526266,164.4,164.34,55.33536266]
[1730555658240,17.73256266,164.41,164.35,17.73256266]
[1730555658645,23.81496266,164.41,164.36,6.0842]
[1730555658845,17.73256266,164.4,164.36,6.0842]
[1730555659047,17.73256266,164.4,164.34,55.33516266]
[1730555660762,23.81526266,164.4,164.34,55.33516266]
[1730555661958,17.73256266,164.39,164.34,37.6026]
[1730555662333,17.73256266,164.39,164.34,55.33516266]
[1730555662849,17.73256266,164.41,164.35,17.73256266]
[1730555663048,23.81516266,164.41,164.35,23.81686266]
[1730555663354,17.73256266,164.4,164.35,6.0843]
[1730555663948,17.73256266,164.41,164.35,23.81686266]
[1730555664156,6.0827,164.4,164.35,23.81686266]
[1730555664733,17.73256266,164.39,164.34,49.25066266]
[1730555665051,17.83256266,164.35,164.27,6.28708886]
[1730555665266,17.73256266,164.3,164.27,6.28708886]
[1730555665436,17.73256266,164.31,164.27,6.28708886]
[1730555665639,17.73256266,164.32,164.27,6.28708886]
[1730555665833,17.73256266,164.31,164.27,6.28708886]
[1730555667055,17.73256266,164.32,164.27,6.28708886]
[1730555667261,23.81816266,164.33,164.27,45.32565152]
[1730555667553,23.81636266,164.37,164.31,17.73256266]
[1730555667735,17.73256266,164.37,164.31,17.73256266]
[1730555668457,17.73256266,164.36,164.31,20.0]
[1730555669138,17.73256266,164.36,164.32,6.0856]